bitfinex/quotes_ETHUSD_20250130
["timestamp","ask_amount","ask_price","bid_price","bid_amount"]
[1738233342623,3.8892,3215.8,3215.6,0.09201799]
[1738233342789,3.8892,3215.8,3215.3,3.11009]
[1738233342990,3.8892,3215.8,3215.4,0.09206121]
[1738233349343,0.7795,3215.8,3215.4,3.20208121]
[1738233349543,0.7883,3216.0,3215.6,3.1098]
[1738233349741,0.7883,3216.0,3215.6,3.8074]
[1738233350069,0.7883,3216.3,3215.9,3.1095]
[1738233350575,0.7883,3216.3,3216.0,0.09213253]
[1738233350874,3.89747,3216.3,3216.0,0.09213253]
[1738233351233,3.89747,3216.3,3215.8,3.10962]
[1738233351434,3.89747,3216.3,3215.9,0.09214516]
[1738233351835,3.10927,3216.2,3215.9,0.09214516]
[1738233352046,3.10927,3216.2,3215.7,3.10972]
[1738233352292,3.10927,3216.2,3215.8,0.0921578]
[1738233352658,3.10927,3216.2,3215.7,3.10972]
[1738233352888,0.63549772,3216.6,3216.0,3.10937]
[1738233353094,0.8231,3216.9,3216.3,3.10916]
[1738233353260,0.8231,3217.2,3216.6,3.10885]
[1738233353586,0.8231,3217.2,3216.8,3.10865]
[1738233353795,0.8231,3217.2,3216.9,0.09164594]
[1738233354346,0.55,3217.3,3216.9,3.20018594]
[1738233354551,3.86564,3217.4,3216.9,0.09164594]
[1738233355083,1.38565164,3217.4,3216.9,0.09164594]
[1738233355263,3.10781,3217.7,3217.2,3.1082]
[1738233355462,3.86524,3217.8,3217.0,3.80605]
[1738233355463,0.7575,3217.8,3217.3,3.19978544]
[1738233355661,3.86529,3217.8,3217.3,0.09159544]
[1738233355886,6.10781,3217.7,3217.3,0.09159544]
[1738233356395,0.7575,3217.8,3217.3,3.19977544]
[1738233356696,3.86521,3217.8,3217.3,0.72550299]
[1738233359785,3.86524,3217.8,3217.3,0.72550299]
[1738233359999,3.10781,3217.7,3217.3,0.72550299]
[1738233364622,0.7575,3217.8,3217.3,0.72550299]
[1738233364821,3.7575,3217.8,3217.3,0.72550299]
[1738233364980,3.0,3217.8,3217.4,3.4914623]
[1738233365177,3.7697,3218.0,3217.5,3.19878984]
[1738233366215,3.10765,3217.9,3217.5,0.09080984]
[1738233366574,0.55,3217.8,3217.5,0.09080984]
[1738233366788,0.55,3217.8,3217.1,8.44836]
[1738233366789,3.10789,3217.7,3217.1,8.44836]
[1738233367034,3.1082,3217.3,3217.2,0.09078318]
[1738233367516,3.108,3217.5,3216.9,3.10856]
[1738233367697,6.21608,3217.5,3217.2,0.09078318]
[1738233367904,6.21608,3217.5,3216.9,3.10856]
[1738233368079,6.21608,3217.5,3217.3,0.09077055]
[1738233368279,6.21608,3217.5,3216.9,3.10856]
[1738233368481,3.108,3217.5,3217.4,0.09075793]
[1738233368722,3.10815,3217.4,3216.9,3.10856]
[1738233370020,3.87756,3217.7,3216.8,3.13975277]
[1738233370224,1.44964151,3218.0,3217.3,3.10812]
[1738233370383,0.8136,3218.0,3217.3,3.80571]
[1738233370578,3.10762,3217.9,3217.4,3.488661]
[1738233370784,0.63402584,3218.2,3217.5,0.03107767]
[1738233370988,0.005,3218.4,3217.5,0.03107767]
[1738233370989,3.11216,3218.4,3217.6,0.6976]
[1738233371200,3.0,3218.3,3217.6,0.6976]
[1738233371435,3.10749,3218.1,3217.5,3.10799]
[1738233371600,3.10752,3218.0,3217.5,3.10799]
[1738233371804,3.65749,3218.1,3217.5,3.10799]
[1738233372037,3.8895,3218.2,3217.6,3.10788]
[1738233372583,3.10745,3218.1,3217.5,3.10799]
[1738233372788,3.10755,3218.0,3217.5,3.8374221]
[1738233373939,3.11216,3218.4,3217.7,3.10774]
[1738233374101,3.11216,3218.4,3217.9,3.10756]
[1738233374817,3.11216,3218.4,3217.7,3.1388334]
[1738233375017,3.10725,3218.3,3217.7,3.10776]
[1738233375222,3.10758,3218.0,3217.7,0.76427421]
[1738233375385,3.10758,3218.0,3217.5,0.7294321]
[1738233375589,3.10769,3217.9,3217.5,0.7294321]
[1738233376090,3.10758,3218.0,3217.5,0.7294321]
[1738233377040,3.10758,3218.0,3217.4,8.44808]
[1738233378133,6.21516,3218.0,3217.4,8.44808]
[1738233378539,3.10762,3217.9,3217.4,5.34]
[1738233378704,3.10772,3217.8,3217.4,5.34]
[1738233378904,3.10769,3217.9,3217.4,5.34]
[1738233380843,3.10769,3217.9,3217.3,3.80572]
[1738233381042,3.10769,3217.9,3217.3,8.139269]
[1738233381613,3.10769,3217.9,3217.3,5.031129]
[1738233382459,3.10769,3217.9,3217.4,0.09058252]
[1738233384315,3.10769,3217.9,3217.4,3.19866252]
[1738233385897,3.10769,3217.9,3217.5,0.23274255]
[1738233386241,3.10769,3217.9,3217.6,0.09055728]
[1738233386854,3.10776,3217.8,3217.6,0.09055728]
[1738233387544,3.10776,3217.8,3217.3,5.031179]
[1738233387714,3.10776,3217.8,3217.7,0.09054466]
[1738233387920,3.10776,3217.8,3217.3,5.031179]
[1738233388116,3.10776,3217.8,3217.7,0.09054466]
[1738233388370,3.10776,3217.8,3217.3,5.031179]
[1738233388544,3.10776,3217.8,3217.7,0.09054466]
[1738233388746,3.10776,3217.8,3217.4,0.23274992]
[1738233389267,3.10776,3217.8,3217.5,0.0905699]
[1738233392561,3.10776,3217.8,3217.3,5.031169]
[1738233392767,3.10776,3217.8,3217.6,0.09055728]
[1738233392939,3.10776,3217.8,3217.3,5.031169]
[1738233393139,3.10776,3217.8,3217.7,0.09054466]
[1738233393340,3.10776,3217.8,3217.3,5.031169]
[1738233393540,3.10776,3217.8,3217.7,0.09054466]
[1738233394157,3.10809,3217.4,3217.0,0.6976]
[1738233394359,3.10809,3217.4,3216.9,0.48463125]
[1738233394360,3.10824,3217.3,3216.9,0.48463125]
[1738233394676,3.86784,3217.5,3217.0,3.10848]
[1738233395955,3.86784,3217.5,3217.1,0.23283567]
[1738233397482,3.86784,3217.5,3217.2,0.32042328]
[1738233398854,3.86784,3217.5,3217.2,0.08758761]
[1738233399058,3.10814,3217.4,3216.9,0.42908513]
[1738233399259,3.65814,3217.4,3217.3,0.08567499]
[1738233399460,3.10819,3217.3,3216.8,3.10866]
[1738233399761,3.10819,3217.3,3216.9,0.23297275]
[1738233399945,3.10837,3217.2,3216.9,0.23297275]
[1738233400149,3.10829,3217.2,3216.9,0.23297275]
[1738233400374,0.7532,3217.1,3216.9,0.23297275]
[1738233400549,3.8616,3217.1,3216.9,0.23297275]
[1738233400949,0.7532,3217.1,3216.9,0.23297275]
[1738233401846,0.7532,3217.1,3216.7,3.10871]
[1738233401847,0.7532,3217.1,3217.0,0.23297275]
[1738233402252,3.86158,3217.1,3217.0,0.23297275]
[1738233403690,3.86158,3217.1,3216.5,3.80649]
[1738233403875,0.7532,3217.1,3216.7,3.10877]
[1738233405010,0.7532,3217.1,3216.7,3.10872]
[1738233405307,0.7532,3217.1,3216.8,0.23285165]
[1738233407107,0.7532,3217.1,3216.8,3.10867]
[1738233409515,0.7532,3217.1,3216.6,3.10886]
[1738233410278,3.8616,3217.1,3216.7,0.23275398]
[1738233411613,3.8616,3217.1,3216.6,6.21767]
[1738233411772,3.10851,3217.0,3216.4,3.10898]
[1738233411971,3.10851,3217.0,3216.4,3.10897]
[1738233411972,3.10848,3217.0,3216.4,3.10897]
[1738233412618,3.10848,3217.0,3216.5,0.0861193]
[1738233413309,3.10848,3217.0,3216.5,0.31881334]
[1738233413310,0.55,3217.0,3216.5,0.31881334]
[1738233413513,3.10865,3216.9,3216.5,0.31881334]
[1738233413670,0.8251,3216.8,3216.5,0.31881334]
[1738233414818,0.8251,3216.8,3216.5,0.0861193]
[1738233415016,3.10887,3216.6,3216.2,0.30169671]
[1738233415314,0.7926,3216.4,3216.3,0.08619821]
[1738233415487,0.7926,3216.4,3216.2,0.30169671]
[1738233415684,0.7926,3216.4,3216.3,0.08619821]
[1738233415915,0.7926,3216.4,3216.2,0.30169671]
[1738233416219,0.7926,3216.4,3216.3,0.08619821]
[1738233416419,1.732765,3216.4,3216.2,0.30169671]
[1738233416579,6.67416,3216.3,3216.2,0.30169671]
[1738233416779,3.10969,3215.8,3215.6,0.48463125]
[1738233416975,3.11003,3215.4,3215.3,0.48463125]
[1738233417204,3.66003,3215.4,3215.3,0.48463125]
[1738233417415,7.42243,3215.4,3215.3,0.48463125]
[1738233417582,8.490666,3215.4,3215.3,0.48463125]
[1738233418276,3.93473,3214.8,3214.4,5.34]
[1738233418475,3.93473,3214.8,3214.2,3.11115]
[1738233418676,3.11072,3214.7,3214.0,3.59599125]
[1738233418887,3.66096,3214.5,3214.0,0.48463125]
[1738233419509,3.11102,3214.4,3214.0,0.48463125]
[1738233419712,0.7708,3214.4,3214.0,0.48463125]
[1738233420228,0.7708,3214.4,3213.9,3.25714863]
[1738233420700,3.66115,3214.3,3213.9,3.25714863]
[1738233421110,3.66115,3214.3,3213.7,3.11161]
[1738233422027,0.55,3214.3,3213.8,3.11156]
[1738233422189,3.015,3214.9,3213.8,3.11156]
[1738233422190,0.7697,3214.8,3214.3,3.11104]
[1738233422727,3.1108,3214.6,3214.0,3.11136]
[1738233423222,3.66093,3214.5,3213.9,3.11145]
[1738233423499,0.8124,3214.3,3213.8,3.11154]
[1738233424509,0.8124,3214.3,3214.2,3.11119]
[1738233424713,0.7669,3214.8,3214.3,3.11106]
[1738233425311,0.55,3214.7,3214.3,3.11106]
[1738233425730,0.55,3214.7,3214.0,3.14245068]
[1738233425924,0.55,3214.7,3214.2,3.11118]
[1738233426437,0.55,3214.7,3214.3,3.11108]
[1738233426750,0.55,3214.7,3214.2,3.11118]
[1738233427152,0.7669,3214.8,3214.4,3.11091]
[1738233427323,0.7669,3214.8,3214.5,3.11084]
[1738233427523,0.7669,3214.8,3214.5,3.18779239]
[1738233428463,0.7669,3214.8,3214.5,0.70682263]
[1738233428755,0.7669,3214.8,3214.5,0.07695239]
[1738233430865,0.55,3214.7,3214.5,0.07695239]
[1738233431165,3.1108,3214.6,3214.0,8.45134]
[1738233431374,3.1108,3214.6,3214.1,3.11125]
[1738233431830,0.55,3214.7,3214.0,8.45134]
[1738233432028,0.55,3214.7,3214.2,3.11119]
[1738233432568,0.55,3214.7,3214.0,8.45134]
[1738233432742,0.55,3214.6,3214.0,8.45134]
[1738233432938,3.11093,3214.5,3214.0,8.45134]
[1738233433169,0.8147,3214.4,3214.0,8.45134]
[1738233433356,0.8147,3214.4,3214.1,3.11126]
[1738233435133,0.8147,3214.4,3214.1,3.11123]
[1738233435631,0.8147,3214.4,3213.9,3.11144]
[1738233435632,0.8147,3214.4,3214.0,3.11133]
[1738233435931,0.8147,3214.4,3214.1,3.11126]
[1738233436675,1.3585,3214.6,3214.1,3.11126]
[1738233437172,4.46936,3214.6,3213.9,6.22284]
[1738233437480,4.46936,3214.6,3214.0,3.11137]
[1738233437848,1.3585,3214.6,3214.1,3.11125]
[1738233438946,1.3585,3214.6,3214.2,3.11118]
[1738233439168,1.3585,3214.6,3214.2,3.11114]
[1738233439335,1.3585,3214.6,3214.0,6.22267]
[1738233439831,1.3585,3214.6,3214.1,3.11129]
[1738233441073,4.46931,3214.6,3214.0,3.11129]
[1738233442071,4.46931,3214.6,3214.1,3.11123]
[1738233442483,4.46931,3214.6,3214.2,0.07712285]
[1738233445697,4.44559,3214.3,3214.2,0.07712285]
[1738233446020,3.1116,3213.8,3213.6,0.48463125]
[1738233446186,3.88317,3213.7,3213.2,3.11215]
[1738233446543,0.7715,3213.7,3213.2,3.11215]
[1738233447250,0.7715,3213.7,3213.3,0.48556305]
[1738233447490,0.7715,3213.7,3213.3,0.71863579]
[1738233447791,0.55,3213.6,3213.3,0.71863579]
[1738233448162,3.66178,3213.6,3213.3,0.71863579]
[1738233448674,0.55,3213.6,3213.3,0.23307274]
[1738233448848,0.55,3213.6,3213.4,0.23307274]
[1738233450401,0.55,3213.6,3213.2,3.11209]
[1738233450981,0.55,3213.6,3213.3,3.11203]
[1738233451369,0.7715,3213.7,3213.3,0.311203]
[1738233451563,3.11016,3215.3,3212.7,5.34]
[1738233451564,0.8248,3214.1,3213.6,3.11176]
[1738233451915,0.8248,3214.1,3213.8,3.11152]
[1738233452069,0.54606058,3214.0,3213.8,3.11152]
[1738233452273,0.54606058,3214.0,3213.7,0.23276311]
[1738233452786,0.54606058,3214.0,3213.7,3.34441311]
[1738233453470,0.54606058,3214.0,3213.7,3.11165]
[1738233453667,3.65746058,3214.0,3213.3,3.11206]
[1738233453871,0.8146,3213.9,3213.4,3.11189]
[1738233454107,0.8146,3213.9,3213.3,3.493026]
[1738233454108,3.92614,3213.9,3213.3,3.493026]
[1738233454408,0.55,3213.8,3213.3,6.605036]
[1738233454908,0.55,3213.8,3213.4,0.23271613]
[1738233455211,3.66162,3213.8,3213.4,0.23271613]
[1738233456068,3.66162,3213.8,3213.3,3.11201]
[1738233456401,3.66162,3213.8,3213.3,3.11199]
[1738233456982,0.55,3213.6,3213.1,6.22439]
[1738233457207,0.55,3213.6,3213.1,3.11218]
[1738233457511,0.55,3213.4,3213.2,0.06977784]
[1738233457707,0.55,3213.4,3213.2,0.30245617]
[1738233458997,0.55,3213.4,3213.2,0.06977784]
[1738233459309,4.104618,3213.4,3212.8,3.1125]
[1738233459612,0.55,3213.2,3212.8,3.1125]
[1738233460891,0.55,3213.2,3212.8,6.22498]
[1738233461100,0.55,3213.2,3212.8,3.11248]
[1738233461671,0.55,3213.2,3212.8,6.22497]
[1738233462007,0.55,3213.2,3212.9,3.11241]
[1738233467417,0.55,3213.2,3212.7,3.11263]
[1738233467625,3.66218,3213.2,3212.7,3.11263]
[1738233472429,3.66218,3213.2,3212.8,0.06573143]
[1738233472726,0.8205,3213.1,3212.7,3.11263]
[1738233472931,0.8205,3213.1,3212.9,0.06571877]
[1738233473087,0.8205,3213.1,3212.7,3.11263]
[1738233473290,0.8205,3213.1,3213.0,0.06570612]
[1738233473559,0.8205,3213.1,3212.7,3.11263]
[1738233473737,0.8205,3213.1,3213.0,0.06570612]
[1738233473940,0.8205,3213.1,3212.7,3.11263]
[1738233474103,0.8205,3213.1,3213.0,0.06570612]
[1738233474428,0.8205,3213.1,3212.7,3.11263]
[1738233474604,0.8205,3213.1,3213.0,0.06570612]
[1738233474802,3.66242,3213.0,3212.6,0.30203479]
[1738233475006,0.7866,3212.7,3212.6,0.30203479]
[1738233475210,0.7866,3212.7,3212.3,3.11298]
[1738233476821,0.7866,3212.7,3212.4,0.23292721]
[1738233477033,3.89932,3212.7,3212.4,0.23292721]
[1738233477244,0.7866,3212.7,3212.4,0.23292721]
[1738233478045,0.565,3212.6,3212.4,0.23292721]
[1738233478337,0.565,3212.6,3212.2,3.11308]
[1738233479418,0.565,3212.6,3212.3,3.11302]
[1738233480227,0.565,3212.6,3212.2,6.22616]
[1738233480426,0.565,3212.6,3212.2,3.11308]
[1738233481931,0.565,3212.6,3212.2,6.22614]
[1738233482927,0.565,3212.6,3212.0,3.11326]
[1738233483126,0.0075,3212.4,3212.0,3.11326]
[1738233483567,0.0075,3212.4,3211.6,0.72873171]
[1738233483731,0.0075,3212.4,3212.3,3.11303]
[1738233484680,0.781,3212.5,3212.4,3.11293]
[1738233484975,0.8024,3213.3,3213.0,3.11233]
[1738233485338,0.015,3213.2,3213.0,3.11233]
[1738233487030,0.015,3213.2,3212.8,3.11248]
[1738233487646,0.015,3213.2,3212.9,0.06401725]
[1738233488248,0.015,3213.2,3212.9,0.29702646]
[1738233489156,0.015,3213.2,3212.9,0.06401725]
[1738233492301,0.8024,3213.3,3213.1,3.1122]
[1738233492512,0.61074553,3213.8,3213.5,3.11186]
[1738233492513,0.7717,3213.8,3213.5,3.11186]
[1738233492894,0.7717,3213.8,3213.6,0.06374978]
[1738233493272,0.7717,3213.8,3213.4,3.11193]
[1738233493627,0.7717,3213.8,3213.5,0.06376243]
[1738233493785,0.7717,3213.8,3213.5,3.17562243]
[1738233495321,0.7907,3214.1,3213.7,3.11167]
[1738233495622,3.7907,3214.1,3213.6,0.06374978]
[1738233495774,3.7907,3214.1,3213.6,3.17548978]
[1738233498973,3.7907,3214.1,3213.7,3.11165]
[1738233499314,0.55,3214.0,3213.7,0.06373713]
[1738233499514,3.7832,3214.1,3213.7,3.17535713]
[1738233499689,3.11104,3214.4,3213.8,3.11156]
[1738233499690,3.8267,3214.3,3213.8,3.11156]
[1738233499888,0.565,3214.2,3213.8,3.11156]
[1738233500104,3.8267,3214.3,3213.8,3.11156]
[1738233500307,3.8267,3214.3,3213.9,3.17517183]
[1738233500519,3.8267,3214.3,3213.9,0.06371183]
[1738233500905,3.0,3214.1,3213.6,6.22344]
[1738233501111,0.821,3213.9,3213.0,0.6976]
[1738233501412,0.821,3213.9,3213.7,0.06345456]
[1738233501619,0.821,3213.9,3213.4,6.2238]
[1738233501825,0.821,3213.9,3213.8,0.06344191]
[1738233502113,0.821,3213.9,3213.5,3.11186]
[1738233502833,0.821,3213.9,3213.6,0.06346722]
[1738233506229,0.821,3213.9,3213.6,3.17517722]
[1738233506441,0.783,3214.1,3213.7,3.11162]
[1738233506592,0.783,3214.4,3214.0,3.11137]
[1738233506794,3.89405,3214.4,3213.8,3.17500191]
[1738233507030,3.89405,3214.4,3214.1,0.06340396]
[1738233507031,3.66859,3214.3,3214.1,0.06340396]
[1738233507238,3.89089,3214.2,3213.6,3.11172]
[1738233507730,3.66881,3214.1,3213.4,8.45193]
[1738233507915,0.798,3213.8,3213.4,8.45193]
[1738233508521,3.90963,3213.8,3213.4,5.34]
[1738233510398,0.798,3213.8,3213.4,5.34]
[1738233511641,0.798,3213.8,3213.3,3.11204]
[1738233512141,3.11169,3213.7,3213.2,3.11208]
[1738233512644,0.798,3213.8,3213.3,3.11201]
[1738233512804,0.798,3213.8,3213.3,3.79797149]
[1738233514698,0.798,3213.8,3213.3,3.11201]
[1738233515302,3.90958,3213.8,3213.3,3.11201]
[1738233516234,0.5575,3214.1,3212.9,3.11244]
[1738233516235,0.015,3213.5,3212.9,3.11244]
[1738233516438,0.8315,3213.2,3212.9,3.11244]
[1738233517444,0.8315,3213.2,3213.0,0.06350023]
[1738233525769,1.389,3213.2,3213.1,0.29137666]
[1738233526272,1.389,3213.2,3213.1,0.35503233]
[1738233539598,0.5575,3213.2,3213.1,0.35503233]
[1738233541585,0.8187,3213.4,3213.2,3.1121]
[1738233541790,3.0,3213.6,3213.2,6.2242]
[1738233542096,0.5575,3213.5,3213.3,0.0636411]
[1738233542586,0.5575,3213.5,3213.4,0.06362844]
[1738233542764,0.5575,3213.5,3213.4,0.29137666]
[1738233543275,0.5575,3213.5,3213.4,0.3550051]
[1738233543666,1.27132546,3213.5,3213.4,0.3550051]
[1738233543994,1.27132546,3213.5,3213.4,0.29137666]
[1738233543995,7.49667,3213.5,3213.4,0.29137666]
[1738233544475,0.0075,3213.1,3212.6,3.81029]
[1738233544659,0.5575,3213.1,3212.6,3.81029]
[1738233544864,0.5575,3213.1,3212.8,0.23331573]
[1738233545291,0.5575,3213.1,3212.9,0.06382406]
[1738233545978,0.5575,3213.1,3212.6,3.81029]
[1738233546454,0.5575,3213.1,3212.7,0.06392093]
[1738233546656,3.86741,3213.0,3212.7,0.06392093]
[1738233546963,3.67746,3212.9,3212.3,3.11299]
[1738233547167,3.67746,3212.9,3212.7,0.52520695]
[1738233547384,3.565,3212.9,3212.8,0.06387607]
[1738233547565,3.565,3212.9,3212.7,1.22280695]
[1738233547566,3.0,3212.9,3212.7,1.22280695]
[1738233547767,3.0,3212.9,3212.8,3.17641607]
[1738233548181,3.0,3212.9,3212.8,0.06387607]
[1738233548383,3.0,3212.9,3212.8,0.35565771]
[1738233548590,3.0,3212.9,3212.8,0.52520695]
[1738233548767,0.5575,3213.1,3212.8,0.5891188]
[1738233549149,3.5575,3213.1,3212.8,0.5891188]
[1738233549895,3.5575,3213.1,3212.9,0.29178164]
[1738233550195,3.5575,3213.1,3213.0,0.06388653]
[1738233550755,0.5575,3213.2,3213.0,0.06388653]
[1738233550951,0.5575,3213.2,3213.0,0.35566817]
[1738233551200,0.203,3213.5,3213.0,3.83817052]
[1738233551201,3.808,3213.5,3213.0,3.83817052]
[1738233551374,3.0,3213.7,3213.1,0.6976]
[1738233554161,3.87036,3213.3,3212.9,0.6976]
[1738233554484,3.87036,3213.3,3213.0,0.06177513]
[1738233555299,0.565,3213.2,3213.1,0.2916371]
[1738233555501,3.67716,3213.2,3213.1,0.2916371]
[1738233555875,3.67716,3213.2,3213.1,0.35339958]
[1738233556199,0.5575,3213.2,3213.1,0.35339958]
[1738233556390,3.11197,3213.4,3213.1,0.35339958]
[1738233556591,3.11197,3213.4,3213.1,0.2916371]
[1738233556913,4.3968,3213.3,3213.2,0.06174982]
[1738233557069,4.3968,3213.3,3213.1,0.2916371]
[1738233557070,3.95896,3213.2,3213.1,0.25137086]
[1738233557576,4.71196,3213.2,3213.1,0.25137086]
[1738233557905,0.565,3212.8,3212.3,3.8106]
[1738233558077,3.67758,3212.8,3212.3,3.8106]
[1738233558745,3.67758,3212.8,3212.3,4.38216752]
[1738233559077,3.67758,3212.8,3212.4,0.23328082]
[1738233559307,3.11234,3213.1,3212.4,0.23328082]
[1738233559617,3.94397,3213.2,3212.7,3.11263]
[1738233559962,6.94397,3213.2,3212.7,3.11263]
[1738233560162,6.94397,3213.2,3212.7,3.56056229]
[1738233560368,3.89328,3213.5,3212.8,3.81013]
[1738233560665,3.0,3213.4,3212.8,0.93088082]
[1738233560864,3.0,3213.4,3212.9,3.11237]
[1738233561590,0.55,3213.3,3213.0,0.23328082]
[1738233562405,0.55,3213.3,3213.1,0.29146565]
[1738233562782,3.89328,3213.5,3213.1,0.29146565]
[1738233562783,3.0,3213.5,3213.1,0.29146565]
[1738233563808,3.0,3213.5,3213.2,0.29146565]
[1738233564195,0.8039,3213.7,3213.2,3.74399022]
[1738233564394,7.03398,3214.1,3213.3,0.72871854]
[1738233564564,3.0,3214.0,3213.5,3.11181]
[1738233564770,3.0,3214.0,3213.6,3.14693696]
[1738233564996,3.0,3214.0,3213.6,0.03517696]
[1738233565597,3.11151,3213.9,3213.6,0.03517696]
[1738233565800,3.0,3214.0,3213.4,0.75764736]
[1738233565979,3.0,3214.0,3213.7,0.02849221]
[1738233566309,3.0,3214.0,3213.5,3.11187]
[1738233567065,6.11142,3214.0,3213.5,3.11187]
[1738233567729,6.11142,3214.0,3213.4,3.56867874]
[1738233568383,6.11142,3214.0,3213.5,3.1118]
[1738233568384,3.0,3214.0,3213.5,3.1118]
[1738233568703,3.0,3214.1,3213.6,3.47167453]
[1738233568894,3.0,3214.1,3213.6,3.76281931]
[1738233569619,3.1114,3214.0,3213.6,0.65110931]
[1738233570221,3.1114,3214.0,3213.6,0.35996453]
[1738233570430,3.11129,3214.1,3213.6,0.35996453]
[1738233570798,3.11129,3214.1,3213.7,0.29107738]
[1738233572200,6.22265,3214.1,3213.7,0.29107738]
[1738233572407,3.11129,3214.1,3213.5,6.2236]
[1738233572611,3.11129,3214.1,3213.5,3.80392]
[1738233572819,3.11129,3214.1,3213.5,6.91572]
[1738233573116,3.11129,3214.1,3213.5,3.80392]
[1738233573311,3.11129,3214.1,3213.6,0.29098306]
[1738233573507,3.11129,3214.1,3213.6,0.58196612]
[1738233573774,3.11129,3214.1,3213.6,3.69372612]
[1738233574624,3.11129,3214.1,3213.6,3.40274306]
[1738233575005,3.11129,3214.1,3213.7,0.6976]
[1738233577023,0.0075,3214.2,3213.7,3.80922]
[1738233577635,0.0075,3214.2,3213.8,0.29087459]
[1738233577938,3.11871,3214.2,3213.8,0.29087459]
[1738233579138,3.11871,3214.2,3213.7,3.80926]
[1738233580838,3.11871,3214.2,3213.8,0.3116]
[1738233581143,3.11871,3214.2,3213.7,3.80926]
[1738233582142,3.11871,3214.2,3213.8,0.29084715]
[1738233583505,3.11871,3214.2,3213.7,3.80926]
[1738233585143,0.015,3214.3,3213.7,0.6976]
[1738233585347,0.55,3214.2,3213.8,3.1115]
[1738233587504,3.66121,3214.2,3213.7,0.6976]
[1738233588553,3.66121,3214.2,3213.8,0.29094549]
[1738233588797,4.339194,3214.2,3213.8,0.58201568]
[1738233589149,1.227984,3214.2,3213.8,0.58201568]
[1738233589353,0.55,3214.2,3213.8,0.58201568]
[1738233590056,0.55,3214.2,3213.9,0.29094549]
[1738233590238,0.55,3214.2,3213.9,0.58201568]
[1738233591254,0.55,3214.2,3214.0,0.29094549]
[1738233591755,3.66879,3214.1,3214.0,0.29094549]
[1738233592064,7.872019,3214.1,3214.0,0.29094549]
[1738233592356,8.40337704,3214.1,3214.0,0.29094549]
[1738233592835,3.12706,3213.3,3213.2,0.29094549]
[1738233593036,4.46996,3213.3,3213.2,0.582459]
[1738233594363,0.5575,3213.3,3213.2,0.582459]
[1738233595222,0.5575,3213.3,3213.2,0.29094549]
[1738233597583,0.5575,3213.3,3213.2,0.58223463]
[1738233598459,0.0075,3213.5,3213.2,0.58223463]
[1738233598879,0.5575,3213.5,3213.2,0.29094549]
[1738233599703,0.5575,3213.5,3213.3,0.29094549]
[1738233601832,0.5575,3213.5,3212.9,0.6976]
[1738233601833,0.7528,3213.3,3212.9,0.6976]
[1738233601969,0.5575,3213.2,3212.7,3.81018]
[1738233602497,0.5575,3213.2,3212.8,3.11253]
[1738233603491,0.5575,3213.2,3212.9,0.29110183]
[1738233603673,0.5575,3213.2,3212.9,0.58220366]
[1738233604569,0.5575,3213.2,3212.9,0.29110183]
[1738233604931,0.5575,3213.2,3213.0,0.29110183]
[1738233605225,0.92947546,3213.2,3213.0,0.29110183]
[1738233605529,0.5575,3213.2,3213.0,0.29110183]
[1738233605824,0.565,3213.3,3213.0,0.29110183]
[1738233606242,0.7976,3213.6,3213.1,3.11224]
[1738233606395,0.7597,3213.9,3213.3,3.112]
[1738233606596,3.11145,3214.0,3213.3,3.112]
[1738233606597,3.11137,3214.1,3213.5,3.1118]
[1738233606811,3.829899,3214.1,3213.5,3.1118]
[1738233607283,3.6689,3214.0,3213.5,3.1118]
[1738233607481,3.11149,3213.9,3213.3,6.224]
[1738233607753,3.1189,3214.0,3213.4,3.11191]
[1738233607918,3.1189,3214.0,3213.4,3.40301183]
[1738233608088,6.23035,3214.0,3213.4,3.40301183]
[1738233608292,3.1189,3214.0,3213.4,3.40301183]
[1738233608829,3.11908,3213.8,3213.4,0.29110183]
[1738233609032,3.6617,3213.7,3213.4,0.29110183]
[1738233609187,3.6617,3213.7,3213.5,0.29110183]
[1738233609531,4.478,3213.7,3213.5,0.29110183]
[1738233610029,3.67677,3213.6,3213.5,0.29110183]
[1738233610334,7.126827,3213.6,3213.5,0.29110183]
[1738233610831,0.565,3213.3,3213.0,0.29110183]
[1738233611185,0.565,3213.3,3213.0,0.58217599]
[1738233611826,0.565,3213.3,3213.1,0.29110183]
[1738233613244,0.565,3213.3,3212.9,3.81004]
[1738233614044,0.565,3213.3,3213.0,3.1123]
[1738233614432,6.11177,3213.6,3213.1,3.1122]
[1738233615246,0.5575,3213.5,3213.1,3.1122]
[1738233615934,0.5575,3213.5,3213.2,0.29116743]
[1738233616143,0.5575,3213.5,3213.2,3.40331743]
[1738233616342,3.0,3213.6,3213.4,3.1119]
[1738233616691,3.0,3213.6,3213.4,3.11191]
[1738233617547,3.5575,3213.6,3213.5,0.29116743]
[1738233618675,7.49147,3213.6,3213.5,0.29116743]
[1738233619015,7.34147,3213.6,3213.5,0.29116743]
[1738233619852,7.34147,3213.6,3213.2,0.29132635]
[1738233620558,3.4075,3213.6,3213.3,3.11205]
[1738233620853,3.4075,3213.6,3213.3,3.76360864]
[1738233621053,3.4075,3213.6,3213.3,4.05508089]
[1738233621550,2.80876799,3213.6,3213.4,3.11195]
[1738233622349,0.7982,3214.0,3213.5,4.10089225]
[1738233622715,0.565,3214.0,3213.6,3.11171]
[1738233622919,0.824,3214.2,3213.7,3.11166]
[1738233623147,0.0075,3214.2,3213.9,3.11147]
[1738233623461,3.90151,3214.4,3214.0,0.6976]
[1738233623626,0.5575,3214.3,3214.0,0.6976]
[1738233624046,3.5575,3214.3,3214.0,0.6976]
[1738233624555,6.6686,3214.3,3214.0,0.6976]
[1738233624727,6.6686,3214.3,3213.7,4.10070225]